Workbook

Sheet Лист1
A1: Школа | C1: МБОУ "Беркет-Ключевская СОШ" | F1: Утвердил: | G1: должность | H1: Директор школы:
A2: Типовое примерное меню приготавливаемых блюд | G2: фамилия | H2: Г.Г. Гинванов
A3: Возрастная категория | E3: 7-11 лет | G3: дата | H3: 2 | I3: 9 | J3: 2024
H4: день | I4: месяц | J4: год
A5: Неделя | B5: День недели | C5: Прием пищи | D5: Раздел меню | E5: Блюда | F5: Вес блюда, г | G5: Белки | H5: Жиры | I5: Углеводы | J5: Калорийность | K5: № рецептуры | L5: Цена
A6: 1 | B6: 1 | C6: Завтрак | D6: гор.блюдо | E6: Макаронные изделия отварные с сливочным маслом | F6: 31 | G6: 5.7 | H6: 4.3 | I6: 31.99 | J6: 189.3 | K6: 203
D7: гор.блюдо | E7: Сосиски отварные | F7: 100 | G7: 10.80 | H7: 13.84 | I7: 0.36 | J7: 201.12
D8: гор.напиток | E8: Компот из сухофруктов | F8: 200.00 | G8: 0.66 | H8: 0.09 | I8: 22.03 | J8: 92.90 | K8: 349.00
D9: хлеб | E9: Хлеб ржаной | F9: 30.00 | G9: 1.98 | H9: 0.36 | I9: 11.88 | J9: 59.40
D10: фрукты
D12: закуска | E12: Салат из моркови с яблоками | F12: 60 | G12: 0.64 | H12: 3.01 | I12: 5.11 | J12: 50.91 | K12: 59
D13: итого | F13: =SUM(F6:F12) -> 421 | G13: =SUM(G6:G12) -> 19.78 | H13: 21.6 | I13: 71.37 | J13: 593.63 | L13: =SUM(L6:L12) -> 0
A14: =A6 -> 1 | B14: =B6 -> 1 | C14: Обед | D14: закуска
D15: 1 блюдо
D16: 2 блюдо
D17: гарнир
D18: напиток
D19: хлеб бел.
D20: хлеб черн.
D23: итого | F23: =SUM(F14:F22) -> 0 | G23: =SUM(G14:G22) -> 0 | H23: 0 | I23: 0 | J23: 0 | L23: =SUM(L14:L22) -> 0
A24: =A6 -> 1 | B24: =B6 -> 1 | C24: Итого за день: | F24: =F13+F23 -> 421 | G24: =G13+G23 -> 19.78 | H24: 21.6 | I24: 71.37 | J24: 593.63 | L24: =L13+L23 -> 0
A25: 1 | B25: 2 | C25: Завтрак | D25: гор.блюдо
D26: гор. Блюдо | E26: Сырники из творога с кашей молочной "Дружба" с маслом сливочным | F26: 60/150/5 | G26: 13.65 | H26: 15.29 | I26: 32.32 | J26: 330.90
D27: гор.напиток
D28: хлеб | E28: Чай с сахаром | F28: 19.00 | G28: 0.07 | H28: 0.02 | I28: 1.00 | J28: 40.00 | K28: 377
D29: фрукты | E29: Хлеб ржаной | F29: 30.00 | G29: 1.98 | H29: 0.36 | I29: 11.88 | K29: 59.4
D30: закуска | E30: Плоды и ягоды свежие (яблоки) | F30: 100 | G30: 0.40 | H30: 0.4 | I30: 9.8 | J30: 47.00 | K30: 184
D32: итого | F32: =SUM(F25:F31) -> 149 | G32: =SUM(G25:G31) -> 16.1 | H32: =SUM(H25:H31) -> 16.07 | I32: =SUM(I25:I31) -> 55 | J32: =SUM(J25:J31) -> 417.9 | L32: 0
A33: =A25 -> 1 | B33: =B25 -> 2 | C33: Обед | D33: закуска
D34: 1 блюдо
D35: 2 блюдо
D36: гарнир
D37: напиток
D38: хлеб бел.
D39: хлеб черн.
D42: итого | F42: =SUM(F33:F41) -> 0 | G42: =SUM(G33:G41) -> 0 | H42: =SUM(H33:H41) -> 0 | I42: =SUM(I33:I41) -> 0 | J42: =SUM(J33:J41) -> 0 | L42: 0
A43: =A25 -> 1 | B43: =B25 -> 2 | C43: Итого за день: | F43: =F32+F42 -> 149 | G43: =G32+G42 -> 16.1 | H43: =H32+H42 -> 16.07 | I43: =I32+I42 -> 55 | J43: =J32+J42 -> 417.9 | L43: 0
A44: 1 | B44: 3 | C44: Завтрак | D44: гор.блюдо | E44: Гуляш из говядины | F44: 50/ 50 | G44: 10.39 | H44: 14.79 | I44: 10.30 | J44: 221.00 | K44: 260
D45: гор. Блюдо | E45: Каша гречневая рассыпчатая | F45: 150 | G45: 3.77 | H45: 2.29 | I45: 39.72 | J45: 214.00 | K45: 171
D46: гор.напиток | E46: Чай с сахаром с лимоном | F46: 185/10/5 | G46: 0.11 | H46: 0.02 | I46: 10.15 | J46: 41.32 | K46: 377
D47: хлеб
D48: фрукты
D49: закуска | E49: Сыр порционно | F49: 10 | G49: 2.63 | H49: 2.66 | I49: 0.00 | J49: 34.33 | K49: 15
D50: хлеб | E50: Хлеб ржаной | F50: 50 | G50: 3.30 | H50: 0.60 | I50: 19.80 | J50: 99.00
D51: итого | F51: =SUM(F44:F50) -> 200 | G51: =SUM(G44:G50) -> 20.202 | H51: =SUM(H44:H50) -> 20.358 | I51: =SUM(I44:I50) -> 79.97 | J51: =SUM(J44:J50) -> 609.6533333 | L51: =SUM(L44:L50) -> 0
A52: =A44 -> 1 | B52: =B44 -> 3 | C52: Обед | D52: закуска
D53: 1 блюдо
D54: 2 блюдо
D55: гарнир
D56: напиток
D57: хлеб бел.
D58: хлеб черн.
D61: итого | F61: =SUM(F52:F60) -> 0 | G61: =SUM(G52:G60) -> 0 | H61: =SUM(H52:H60) -> 0 | I61: =SUM(I52:I60) -> 0 | J61: =SUM(J52:J60) -> 0 | L61: 0
A62: =A44 -> 1 | B62: =B44 -> 3 | C62: Итого за день: | F62: =F51+F61 -> 200 | G62: =G51+G61 -> 20.202 | H62: =H51+H61 -> 20.358 | I62: =I51+I61 -> 79.97 | J62: =J51+J61 -> 609.6533333 | L62: 0
A63: 1 | B63: 4 | C63: Завтрак | D63: гор.блюдо | E63: Котлета из мяса птицы | F63: 90 | G63: 10.20 | H63: 12.93 | I63: 13.79 | J63: 198.00
D64: гор. Блюдо | E64: Пюре картофельное с маслом сливочным | F64: 150/3 | G64: 3.08 | H64: 6.25 | I64: 20.47 | J64: 150.45 | K64: 312
D65: гор.напиток | E65: Чай с сахаром, с яблоком | F65: 180/10/10 | G65: 0.11 | H65: 0.06 | I65: 10.98 | J65: 44.70 | K65: 376
D66: хлеб | E66: Хлеб пшеничный | F66: 30 | G66: 2.28 | H66: 0.24 | I66: 14.76 | J66: 70.50
D67: фрукты
D68: закуска | E68: Свекла отварная дольками | F68: 60 | G68: 1.08 | H68: 0.06 | I68: 5.88 | J68: 28.80
D69: хлеб | E69: Хлеб ржаной | F69: 40 | G69: 2.64 | H69: 0.48 | I69: 15.84 | J69: 79.20
D70: итого | F70: =SUM(F63:F69) -> 220 | G70: =SUM(G63:G69) -> 19.3865 | H70: =SUM(H63:H69) -> 20.0195 | I70: =SUM(I63:I69) -> 81.715 | J70: =SUM(J63:J69) -> 571.65 | L70: 0
A71: =A63 -> 1 | B71: =B63 -> 4 | C71: Обед | D71: закуска
D72: 1 блюдо
D73: 2 блюдо
D74: гарнир
D75: напиток
D76: хлеб бел.
D77: хлеб черн.
D80: итого | F80: =SUM(F71:F79) -> 0 | G80: =SUM(G71:G79) -> 0 | H80: =SUM(H71:H79) -> 0 | I80: =SUM(I71:I79) -> 0 | J80: =SUM(J71:J79) -> 0 | L80: 0
A81: =A63 -> 1 | B81: =B63 -> 4 | C81: Итого за день: | F81: =F70+F80 -> 220 | G81: =G70+G80 -> 19.3865 | H81: =H70+H80 -> 20.0195 | I81: =I70+I80 -> 81.715 | J81: =J70+J80 -> 571.65 | L81: 0
A82: 1 | B82: 5 | C82: Завтрак | D82: гор.блюдо | E82: Тефтели мясные в сметанно-томатном соусе | F82: 60/40 | G82: 7.284 | H82: 11.940 | I82: 8.360 | J82: 124 | K82: 279
D83: гор.блюдо | E83: Макаронные изделия отварные с маслом сливочным | F83: 180/5 | G83: 5.10 | H83: 3.62 | I83: 31.96 | J83: 176.10 | K83: 203
D84: гор.напиток | E84: Напиток из свежих фруктов (75С) | F84: 200 | G84: 0.34 | H84: 0.17 | I84: 21.46 | J84: 103.50
D85: хлеб | E85: Хлеб пшеничный | F85: 45 | G85: =G76*1.5 -> 0.00 | H85: =H76*1.5 -> 0.00 | I85: 0.00 | J85: 0.00
D86: фрукты
D87: хлеб
D88: закуска | E88: Сыр порционно | F88: 15 | G88: 3.95 | H88: 3.99 | I88: 0.00 | J88: 51.50 | K88: 15
D89: итого | F89: =SUM(F82:F88) -> 260 | G89: =SUM(G82:G88) -> 16.6688 | H89: =SUM(H82:H88) -> 19.72 | I89: =SUM(I82:I88) -> 61.782 | J89: =SUM(J82:J88) -> 455.09 | L89: 0
A90: =A82 -> 1 | B90: =B82 -> 5 | C90: Обед | D90: закуска
D91: 1 блюдо
D92: 2 блюдо
D93: гарнир
D94: напиток
D95: хлеб бел.
D96: хлеб черн.
D99: итого | F99: =SUM(F90:F98) -> 0 | G99: =SUM(G90:G98) -> 0 | H99: =SUM(H90:H98) -> 0 | I99: =SUM(I90:I98) -> 0 | J99: =SUM(J90:J98) -> 0 | L99: 0
A100: =A82 -> 1 | B100: =B82 -> 5 | C100: Итого за день: | F100: =F89+F99 -> 260 | G100: =G89+G99 -> 16.6688 | H100: =H89+H99 -> 19.72 | I100: =I89+I99 -> 61.782 | J100: =J89+J99 -> 455.09 | L100: 0
A101: 2 | B101: 1 | C101: Завтрак | D101: гор.блюдо | E101: Сырники из творога с кашей пшенной молочной с маслом сливочным | F101: 60/180/5 | G101: 16.02 | H101: 18.13 | I101: 42.98 | J101: 386.40
D102: гор.блюдо
D103: гор.напиток | E103: Чай "Витаминный" с шиповником | F103: 185/10/5 | G103: 0.24 | H103: 0.09 | I103: 12.43 | J103: 54.20 | K103: 376
D104: хлеб | E104: Хлеб пшеничный | F104: 25 | G104: 1.90 | H104: 0.20 | I104: 12.30 | J104: 58.75
D105: фрукты
D106: хлеб | E106: Хлеб ржаной | F106: 30 | G106: 1.98 | H106: 0.36 | I106: 11.88 | J106: 59.40
D108: итого | F108: =SUM(F101:F107) -> 55 | G108: =SUM(G101:G107) -> 20.135 | H108: 18.78 | I108: 79.585 | J108: 558.75 | L108: =SUM(L101:L107) -> 0
A109: =A101 -> 2 | B109: =B101 -> 1 | C109: Обед | D109: закуска
D110: 1 блюдо
D111: 2 блюдо
D112: гарнир
D113: напиток
D114: хлеб бел.
D115: хлеб черн.
D118: итого | F118: =SUM(F109:F117) -> 0 | G118: =SUM(G109:G117) -> 0 | H118: 0 | I118: 0 | J118: 0 | L118: =SUM(L109:L117) -> 0
A119: =A101 -> 2 | B119: =B101 -> 1 | C119: Итого за день: | F119: =F108+F118 -> 55 | G119: =G108+G118 -> 20.135 | H119: =H108+H118 -> 18.78 | I119: =I108+I118 -> 79.585 | J119: =J108+J118 -> 558.75 | L119: 0
A120: 2 | B120: 2 | C120: Завтрак | D120: гор.блюдо | E120: Плов из говядины с рисовой крупой | F120: 50/150 | G120: 15.95 | H120: 19.55 | I120: 39.75 | J120: 408.42 | K120: 265
D121: гор. Блюдо
D122: гор.напиток | E122: Чай с сахаром | F122: 190/10 | G122: 0.07 | H122: 0.02 | I122: 10.01 | J122: 40.00 | K122: 376
D123: хлеб | E123: Хлеб пшеничный | F123: 25 | G123: 1.90 | H123: 0.20 | I123: 12.30 | J123: 58.75
D124: фрукты | E124: Плоды и ягоды свежие (яблоки) | F124: 100 | G124: 0.40 | H124: 0.40 | I124: 9.80 | J124: 47.00
D125: хлеб | E125: Хлеб ржаной | F125: 20 | G125: 1.32 | H125: 0.24 | I125: 7.92 | J125: 39.60
D127: итого | F127: =SUM(F120:F126) -> 145 | G127: =SUM(G120:G126) -> 19.63583333 | H127: 20.41 | I127: 79.775 | J127: 593.7666667 | L127: =SUM(L120:L126) -> 0
A128: =A120 -> 2 | B128: =B120 -> 2 | C128: Обед | D128: закуска
D129: 1 блюдо
D130: 2 блюдо
D131: гарнир
D132: напиток
D133: хлеб бел.
D134: хлеб черн.
D137: итого | F137: =SUM(F128:F136) -> 0 | G137: =SUM(G128:G136) -> 0 | H137: 0 | I137: 0 | J137: 0 | L137: =SUM(L128:L136) -> 0
A138: =A120 -> 2 | B138: =B120 -> 2 | C138: Итого за день: | F138: =F127+F137 -> 145 | G138: =G127+G137 -> 19.63583333 | H138: =H127+H137 -> 20.41 | I138: =I127+I137 -> 79.775 | J138: =J127+J137 -> 593.7666667 | L138: 0
A139: 2 | B139: 3 | C139: Завтрак | D139: гор.блюдо | E139: Рыба, тушенная в томате с овощами | F139: 50/50 | G139: 9.05 | H139: 6.09 | I139: 3.80 | J139: 105.00 | K139: 229
D140: гор. Блюдо | E140: Пюре картофельное с маслом сливочным | F140: 150/3 | G140: 3.08 | H140: 6.25 | I140: 20.47 | J140: 150.45 | K140: 312
D141: гор.напиток | E141: Компот из свежих яблок (75С) | F141: 200 | G141: 0.16 | H141: 0.16 | I141: 17.90 | J141: 74.60 | K141: 342
D142: хлеб | E142: Хлеб пшеничный | F142: 35 | G142: 2.66 | H142: 0.28 | I142: 17.22 | J142: 82.25
D143: фрукты
D144: закуска | E144: Салат из отварной свеклы | F144: 60 | G144: 0.84 | H144: 3.61 | I144: 4.96 | J144: 55.68 | K144: 52
D145: хлеб
D146: итого | F146: =SUM(F139:F145) -> 295 | G146: =SUM(G139:G145) -> 15.7913 | H146: 16.3907 | I146: 64.343 | J146: 467.98 | L146: =SUM(L139:L145) -> 0
A147: =A139 -> 2 | B147: =B139 -> 3 | C147: Обед | D147: закуска
D148: 1 блюдо
D149: 2 блюдо
D150: гарнир
D151: напиток
D152: хлеб бел.
D153: хлеб черн.
D156: итого | F156: =SUM(F147:F155) -> 0 | G156: =SUM(G147:G155) -> 0 | H156: 0 | I156: 0 | J156: 0 | L156: =SUM(L147:L155) -> 0
A157: =A139 -> 2 | B157: =B139 -> 3 | C157: Итого за день: | F157: =F146+F156 -> 295 | G157: =G146+G156 -> 15.7913 | H157: =H146+H156 -> 16.3907 | I157: =I146+I156 -> 64.343 | J157: =J146+J156 -> 467.98 | L157: 0
A158: 2 | B158: 4 | C158: Завтрак | D158: гор.блюдо | E158: Тефтели куриные с гречневой крупой в сметанно-томатном соусе | F158: 60/40 | G158: 3.17 | H158: 5.19 | I158: 9.85 | J158: 118.01
D159: гор. Блюдо | E159: Макаронные изделия отварные с маслом сливочным | F159: 180/3 | G159: 6.64 | H159: 7.60 | I159: 31.78 | J159: 221.94 | K159: 203
D160: гор.напиток | E160: Какао с молоком | F160: 200 | G160: 4.08 | H160: 3.54 | I160: 7.60 | J160: 78.60 | K160: 382
D161: хлеб | E161: Хлеб пшеничный | F161: 30 | G161: 2.28 | H161: 0.24 | I161: 14.76 | J161: 70.50
D162: фрукты
D165: итого | F165: =SUM(F158:F164) -> 230 | G165: =SUM(G158:G164) -> 16.1724 | H165: 16.57 | I165: 63.9823 | J165: 489.05 | L165: =SUM(L158:L164) -> 0
A166: =A158 -> 2 | B166: =B158 -> 4 | C166: Обед | D166: закуска
D167: 1 блюдо
D168: 2 блюдо
D169: гарнир
D170: напиток
D171: хлеб бел.
D172: хлеб черн.
D175: итого | F175: =SUM(F166:F174) -> 0 | G175: =SUM(G166:G174) -> 0 | H175: 0 | I175: 0 | J175: 0 | L175: =SUM(L166:L174) -> 0
A176: =A158 -> 2 | B176: =B158 -> 4 | C176: Итого за день: | F176: =F165+F175 -> 230 | G176: =G165+G175 -> 16.1724 | H176: =H165+H175 -> 16.57 | I176: =I165+I175 -> 63.9823 | J176: =J165+J175 -> 489.05 | L176: 0
A177: 2 | B177: 5 | C177: Завтрак | D177: гор.блюдо | E177: Овощи тушеные с мясом | F177: 50/150 | G177: 12.48 | H177: 15.68 | I177: 19.34 | J177: 271.50 | K177: 143
D178: закуска
D179: гор.напиток | E179: Компот из сухофруктов (75С) | F179: 200 | G179: 0.66 | H179: 0.09 | I179: 22.03 | J179: 92.80 | K179: 349
D180: хлеб | E180: Хлеб пшеничный | F180: 30 | G180: 2.28 | H180: 0.24 | I180: 14.76 | J180: 70.50
D181: фрукты | E181: Плоды и ягоды свежие (яблоки) | F181: 100 | G181: 0.40 | H181: 0.40 | I181: 9.80 | J181: 47.00
D184: итого | F184: =SUM(F177:F183) -> 330 | G184: =SUM(G177:G183) -> 15.817 | H184: 16.41 | I184: 65.929 | J184: 481.8 | L184: =SUM(L177:L183) -> 0
A185: =A177 -> 2 | B185: =B177 -> 5 | C185: Обед | D185: закуска
D186: 1 блюдо
D187: 2 блюдо
D188: гарнир
D189: напиток
D190: хлеб бел.
D191: хлеб черн.
D194: итого | F194: =SUM(F185:F193) -> 0 | G194: =SUM(G185:G193) -> 0 | H194: 0 | I194: 0 | J194: 0 | L194: =SUM(L185:L193) -> 0
A195: =A177 -> 2 | B195: =B177 -> 5 | C195: Итого за день: | F195: =F184+F194 -> 330 | G195: =G184+G194 -> 15.817 | H195: =H184+H194 -> 16.41 | I195: =I184+I194 -> 65.929 | J195: =J184+J194 -> 481.8 | L195: 0
C196: Среднее значение за период: | F196: =(F24+F43+F62+F81+F100+F119+F138+F157+F176+F195)/(IF(F24=0,0,1)+IF(F43=0,0,1)+IF(F62=0,0,1)+IF(F81=0,0,1)+IF(F100=0,0,1)+IF(F119=0,0,1)+IF(F138=0,0,1)+IF(F157=0,0,1)+IF(F176=0,0,1)+IF(F195=0,0,1)) -> 230.5 | G196: =(G24+G43+G62+G81+G100+G119+G138+G157+G176+G195)/(IF(G24=0,0,1)+IF(G43=0,0,1)+IF(G62=0,0,1)+IF(G81=0,0,1)+IF(G100=0,0,1)+IF(G119=0,0,1)+IF(G138=0,0,1)+IF(G157=0,0,1)+IF(G176=0,0,1)+IF(G195=0,0,1)) -> 17.96888333 | H196: 18.63282 | I196: 70.34513 | J196: 523.927 | L196: =(L24+L43+L62+L81+L100+L119+L138+L157+L176+L195)/(IF(L24=0,0,1)+IF(L43=0,0,1)+IF(L62=0,0,1)+IF(L81=0,0,1)+IF(L100=0,0,1)+IF(L119=0,0,1)+IF(L138=0,0,1)+IF(L157=0,0,1)+IF(L176=0,0,1)+IF(L195=0,0,1)) -> 
